bitfinex-derivatives/quotes_SOLF0:USTF0_20241227
["timestamp","ask_amount","ask_price","bid_price","bid_amount"]
[1735278520709,12.09338879,188.97,188.88,2.6502]
[1735278521009,12.09338879,188.97,188.86,3.3698]
[1735278521210,2.6495,188.94,188.89,2.65]
[1735278521509,2.6495,188.94,188.9,3.08]
[1735278522813,2.6491,188.96,188.91,2.6497]
[1735278523006,2.6491,188.96,188.9,3.08]
[1735278523303,12.09338879,189.0,188.9,3.08]
[1735278524303,2.6494,188.94,188.9,3.08]
[1735278528831,2.6494,188.94,188.9,5.7299]
[1735278529630,12.09338879,189.0,188.9,3.08]
[1735278529828,2.649,188.97,188.9,3.08]
[1735278530926,12.09338879,189.0,188.9,3.08]
[1735278531129,2.6488,188.98,188.9,3.08]
[1735278531533,2.6488,188.98,188.9,15.17338879]
[1735278532150,2.6486,189.0,188.96,2.649]
[1735278532346,19.29215988,189.05,188.96,3.08]
[1735278532836,12.09338879,189.05,188.96,3.08]
[1735278533035,2.6483,189.02,188.97,2.6489]
[1735278533431,12.09338879,189.05,188.97,2.6489]
[1735278533727,2.6484,189.01,188.97,2.6489]
[1735278533925,2.6484,189.01,188.96,5.729]
[1735278534912,2.6484,189.01,188.97,2.6489]
[1735278535912,2.6481,189.03,188.99,2.6486]
[1735278538715,2.6482,189.02,188.98,2.6487]
[1735278538909,12.11140829,189.04,188.97,6.3514]
[1735278539109,12.11140829,189.04,188.97,4.7478]
[1735278541006,12.11140829,189.04,188.95,2.6491]
[1735278541007,2.6488,188.98,188.95,3.08]
[1735278541212,12.11140829,189.04,188.95,3.08]
[1735278542107,12.11140829,189.04,188.95,5.7291]
[1735278542508,2.6488,188.99,188.95,5.7291]
[1735278542716,12.11140829,189.01,188.95,3.08]
[1735278543419,2.649,188.97,188.95,3.08]
[1735278543817,12.11140829,189.01,188.95,3.08]
[1735278544017,2.6484,189.01,188.95,3.08]
[1735278544923,2.6484,189.01,188.97,2.6488]
[1735278546326,12.11140829,189.04,188.95,3.08]
[1735278547420,2.6489,188.97,188.95,3.08]
[1735278548921,2.6489,188.97,188.94,3.08]
[1735278550318,12.11140829,189.07,188.92,3.08]
[1735278550319,12.11140829,188.98,188.92,3.08]
[1735278550522,12.11140829,188.98,188.91,3.08]
[1735278550718,2.6497,188.92,188.91,3.08]
[1735278551524,12.11140829,188.98,188.91,3.08]
[1735278551722,12.11140829,189.01,188.91,3.08]
[1735278553024,2.6488,188.98,188.91,3.08]
[1735278553324,2.6488,188.98,188.92,3.1358]
[1735278554427,2.6488,188.98,188.94,2.6493]
[1735278556121,2.6488,188.98,188.93,2.6495]
[1735278556826,12.11140829,189.01,188.93,2.6495]
[1735278557123,12.11140829,189.01,188.93,3.08]
[1735278557524,2.6493,188.94,188.93,3.08]
[1735278558719,2.6492,188.95,188.93,3.08]
[1735278559021,12.11140829,189.01,188.93,3.08]
[1735278560119,2.6487,188.99,188.93,5.7295]
[1735278560323,12.11140829,189.01,188.93,5.7295]
[1735278561519,2.6489,188.98,188.93,5.7295]
[1735278564126,12.11140829,189.01,188.93,5.7295]
[1735278564323,2.6489,188.97,188.93,5.7295]
[1735278565023,2.6491,188.96,188.93,3.08]
[1735278565225,12.11140829,188.98,188.91,3.08]
[1735278565830,2.6496,188.92,188.91,3.08]
[1735278566233,12.11140829,188.98,188.85,3.2447]
[1735278566529,2.6499,188.9,188.86,5.7304]
[1735278567328,12.11140829,188.95,188.85,3.2447]
[1735278567517,12.11140829,188.95,188.86,3.08]
[1735278567929,2.6501,188.89,188.86,3.08]
[1735278568132,12.11140829,188.95,188.86,3.08]
[1735278569427,2.6499,188.9,188.86,5.7305]
[1735278570331,2.6499,188.9,188.86,3.08]
[1735278570526,12.11140829,188.92,188.84,3.08]
[1735278572135,2.6506,188.86,188.84,3.08]
[1735278572636,12.11140829,188.92,188.84,3.08]
[1735278573535,2.6503,188.87,188.84,3.08]
[1735278575338,12.11140829,188.92,188.84,5.7307]
[1735278576436,2.6503,188.88,188.84,5.7307]
[1735278576735,12.11140829,188.92,188.86,2.6504]
[1735278576937,12.11140829,188.95,188.84,3.08]
[1735278577233,12.11140829,188.95,188.85,3.0647]
[1735278577433,12.11140829,188.98,188.9,2.6498]
[1735278577634,12.11140829,188.98,188.91,3.06]
[1735278577830,7.19877109,188.99,188.94,2.6493]
[1735278578029,12.11140829,189.01,188.94,2.6493]
[1735278578626,2.6487,188.99,188.94,2.6493]
[1735278578832,7.19877109,189.04,188.96,2.649]
[1735278579032,7.19877109,189.04,188.97,3.06]
[1735278579234,12.11140829,189.06,188.97,3.06]
[1735278581340,2.648,189.04,188.97,3.06]
[1735278581541,12.11140829,189.06,188.97,3.06]
[1735278581940,12.11140829,189.03,188.96,3.06]
[1735278583130,2.6488,188.98,188.96,3.06]
[1735278583436,12.11140829,189.03,188.96,3.06]
[1735278583642,12.11140829,189.0,188.93,1.5296]
[1735278583936,12.11140829,188.97,188.84,3.2025]
[1735278584238,12.11140829,188.94,188.85,4.6042]
[1735278585645,12.11140829,188.91,188.85,4.6042]
[1735278586940,2.6502,188.89,188.85,4.6042]
[1735278587242,12.11140829,188.91,188.85,4.6042]
[1735278587840,2.6503,188.87,188.85,4.6042]
[1735278588341,2.6505,188.86,188.85,3.06]
[1735278595836,10.67617109,188.99,188.85,3.06]
[1735278596047,12.11140829,188.95,188.85,3.06]
[1735278596946,12.11140829,188.95,188.85,5.7106]
[1735278597144,12.11140829,188.95,188.85,3.06]
[1735278597647,2.6495,188.94,188.88,2.6502]
[1735278598242,2.6495,188.93,188.88,2.6502]
[1735278598438,2.6495,188.93,188.85,3.06]
[1735278598640,7.19877109,189.02,188.85,15.17140829]
[1735278598846,12.11140829,189.0,188.85,15.17140829]
[1735278599050,2.6492,188.95,188.89,2.65]
[1735278599253,12.11140829,189.0,188.9,3.06]
[1735278599545,2.6495,188.94,188.9,3.06]
[1735278600651,12.11140829,188.94,188.84,1.5972]
[1735278600953,12.11140829,188.94,188.85,3.06]
[1735278601344,2.6502,188.89,188.85,3.06]
[1735278601647,12.11140829,188.91,188.85,3.06]
[1735278602550,2.6504,188.87,188.85,3.06]
[1735278602752,12.11140829,188.88,188.8,1.5356]
[1735278602944,2.6509,188.83,188.82,3.06]
[1735278603144,12.11140829,188.85,188.77,1.6206]
[1735278603361,12.11140829,188.85,188.78,3.06]
[1735278603951,2.6511,188.82,188.78,3.06]
[1735278604556,2.6509,188.83,188.78,5.7116]
[1735278605943,12.11140829,188.85,188.78,3.06]
[1735278606144,12.11140829,188.82,188.74,1.5965]
[1735278606347,12.11140829,188.82,188.75,3.06]
[1735278606644,2.6516,188.78,188.75,3.06]
[1735278606843,12.11140829,188.82,188.75,3.06]
[1735278607251,14.76250829,188.82,188.77,2.6517]
[1735278607454,12.11140829,188.85,188.75,3.06]
[1735278608554,12.11140829,188.85,188.76,1.6369]
[1735278609151,2.651,188.83,188.78,2.6516]
[1735278609350,12.11140829,188.85,188.76,1.6369]
[1735278609650,12.11140829,188.82,188.75,3.08]
[1735278610658,2.6516,188.78,188.75,3.08]
[1735278610955,12.11140829,188.82,188.75,3.08]
[1735278613656,2.6518,188.77,188.75,3.08]
[1735278614557,2.6515,188.79,188.75,3.08]
[1735278614860,12.11140829,188.82,188.75,3.08]
[1735278615760,2.6513,188.8,188.75,3.08]
[1735278615961,12.11140829,188.82,188.75,3.08]
[1735278616160,12.11140829,188.82,188.71,2.6526]
[1735278616361,12.11140829,188.82,188.72,3.08]
[1735278616562,2.652,188.76,188.72,3.08]
[1735278616768,12.11140829,188.82,188.72,3.08]
[1735278617258,12.11140829,188.79,188.68,1.6371]
[1735278617466,12.11140829,188.76,188.69,3.08]
[1735278617859,2.6523,188.73,188.69,3.08]
[1735278623360,2.6523,188.73,188.67,3.2575]
[1735278623361,12.11140829,188.73,188.67,3.2575]
[1735278623560,12.11140829,188.73,188.66,3.08]
[1735278623966,12.11140829,188.7,188.66,3.08]
[1735278625463,2.6531,188.67,188.66,3.08]
[1735278625865,2.6531,188.67,188.63,3.08]
[1735278626167,12.11140829,188.7,188.61,3.08]
[1735278626379,12.11140829,188.73,188.52,41.51217087]
[1735278626380,12.11140829,188.67,188.52,41.51217087]
[1735278626666,2.6539,188.62,188.55,6.3457]
[1735278626864,2.6539,188.62,188.57,2.6545]
[1735278627264,12.11140829,188.67,188.58,3.08]
[1735278627465,12.11140829,188.64,188.58,3.08]
[1735278627873,12.11140829,188.64,188.56,3.08]
[1735278629873,2.6543,188.59,188.56,3.08]
[1735278632470,2.6549,188.55,188.52,41.51217087]
[1735278632778,12.11140829,188.61,188.5,3.08]
[1735278632965,12.11140829,188.58,188.51,4.93216222]
[1735278633170,2.6551,188.54,188.51,3.08]
[1735278638177,12.11140829,188.55,188.47,3.1701]
[1735278638576,2.6554,188.51,188.47,3.1701]
[1735278639182,2.6552,188.53,188.47,3.1701]
[1735278639884,12.11140829,188.55,188.48,2.6557]
[1735278640089,2.655,188.54,188.48,2.6557]
[1735278640483,2.6547,188.57,188.47,3.1701]
[1735278641480,2.6547,188.56,188.51,2.6553]
[1735278641684,2.6547,188.56,188.52,3.06]
[1735278644084,12.11140829,188.58,188.52,3.06]
[1735278644290,12.11140829,188.58,188.5,3.06]
[1735278644490,12.11140829,188.55,188.5,3.06]
[1735278645491,2.6554,188.52,188.5,3.06]
[1735278645692,12.11140829,188.55,188.47,6.2301]
[1735278646392,2.6555,188.51,188.47,6.2301]
[1735278646593,12.11140829,188.55,188.48,3.06]
[1735278648593,14.76640829,188.55,188.5,2.6554]
[1735278650194,2.655,188.54,188.5,2.6554]
[1735278652595,14.76620829,188.55,188.5,2.6554]
[1735278653091,12.11140829,188.55,188.5,2.6554]
[1735278653298,2.655,188.54,188.5,2.6554]
[1735278657195,2.6553,188.52,188.47,3.06]
[1735278658396,2.6553,188.52,188.48,2.6558]
[1735278658801,12.11140829,188.55,188.44,3.1094]
[1735278659100,2.6557,188.49,188.45,5.7162]
[1735278659899,2.6554,188.51,188.47,2.6559]
[1735278660495,14.76670829,188.52,188.48,2.6558]
[1735278660695,14.76670829,188.52,188.45,3.06]
[1735278660696,12.11140829,188.52,188.45,3.06]
[1735278661198,12.11140829,188.55,188.45,3.06]
[1735278661606,2.6551,188.53,188.48,2.6558]
[1735278662495,2.6553,188.52,188.48,2.6558]
[1735278664404,2.6553,188.52,188.45,3.06]
[1735278664605,12.11140829,188.55,188.45,3.06]
[1735278665502,2.6557,188.49,188.44,5.7656]
[1735278665706,2.6557,188.49,188.45,3.06]
[1735278665901,2.6552,188.52,188.45,3.06]
[1735278666102,12.11140829,188.55,188.45,3.06]
[1735278666407,2.6554,188.52,188.45,3.06]
[1735278667302,2.6554,188.52,188.47,2.6558]
[1735278668109,12.11140829,188.55,188.47,2.6558]
[1735278668302,2.6554,188.51,188.47,2.6558]
[1735278671109,29.22148437,188.61,188.46,7.79310377]
[1735278671310,7.79310377,188.56,188.5,7.79310377]
[1735278671612,28.79508437,188.61,188.52,7.79310377]
[1735278671810,7.79310377,188.59,188.52,7.79310377]
[1735278672112,28.79508437,188.61,188.52,7.79310377]
[1735278672113,28.79508437,188.61,188.52,1.6866]
[1735278672411,2.6543,188.59,188.52,1.6866]
[1735278672609,12.16688245,188.59,188.52,1.6866]
[1735278673116,2.655,188.54,188.51,6.1642]
[1735278673316,12.16688245,188.56,188.51,6.1642]
[1735278673518,2.6545,188.57,188.52,2.6551]
[1735278675410,2.6544,188.58,188.51,6.1642]
[1735278675816,12.16688245,188.59,188.51,6.1642]
[1735278677018,2.6543,188.59,188.51,6.1642]
[1735278678522,2.6543,188.59,188.54,2.6548]
[1735278679828,2.6543,188.59,188.51,6.1642]
[1735278680229,12.16688245,188.62,188.58,2.6544]
[1735278680429,12.16688245,188.62,188.58,5.6944]
[1735278681129,12.16688245,188.65,188.58,3.04]
[1735278681525,14.82048245,188.65,188.6,2.654]
[1735278681824,12.16688245,188.65,188.58,3.04]
[1735278682631,2.654,188.62,188.58,3.04]
[1735278682930,12.16688245,188.65,188.58,3.04]
[1735278683135,14.82028245,188.65,188.6,2.654]
[1735278683332,14.82028245,188.65,188.58,3.04]
[1735278683636,14.82028245,188.65,188.59,1.6281]
[1735278683838,14.82028245,188.65,188.59,3.1953]
[1735278684036,2.6533,188.67,188.59,3.1953]
[1735278684430,12.16688245,188.68,188.59,3.1953]
[1735278684629,2.6527,188.7,188.65,2.6534]
[1735278684832,2.6527,188.7,188.65,5.6934]
[1735278685037,12.16688245,188.71,188.65,3.04]
[1735278685433,12.16688245,188.68,188.65,3.04]
[1735278685930,2.6531,188.67,188.65,3.04]
[1735278686134,28.79508437,188.74,188.65,3.04]
[1735278686135,12.16688245,188.71,188.65,3.04]
[1735278686433,2.6528,188.7,188.65,5.6934]
[1735278687839,12.16688245,188.71,188.65,5.6934]
[1735278687840,2.6529,188.69,188.65,5.6934]
[1735278689341,2.6527,188.7,188.65,5.6934]
[1735278692245,10.43170475,188.7,188.65,5.6934]
[1735278693743,7.77900475,188.7,188.65,3.04]
[1735278693945,7.77900475,188.7,188.66,2.6532]
[1735278694947,10.43180475,188.7,188.66,2.6532]
[1735278696351,7.77900475,188.7,188.66,2.6532]
[1735278697050,7.77900475,188.72,188.68,2.653]
[1735278697347,7.77900475,188.72,188.65,10.81900475]
[1735278697348,7.77900475,188.76,188.69,7.77900475]
[1735278697554,7.77900475,188.76,188.7,3.04]
[1735278698046,7.77900475,188.78,188.71,7.77900475]
[1735278698447,7.77900475,188.76,188.7,3.04]
[1735278699851,53.59956705,188.84,188.73,7.77900475]
[1735278700044,7.77900475,188.82,188.75,7.77900475]
[1735278700244,4.81901726,188.89,188.77,7.77900475]
[1735278700245,7.77900475,188.85,188.77,7.77900475]
[1735278700441,7.77900475,188.85,188.78,3.04]
[1735278700853,7.77900475,188.85,188.79,7.77900475]
[1735278701248,10.42960475,188.85,188.8,2.6513]
[1735278701642,7.77900475,188.85,188.79,7.77900475]
[1735278701846,7.77900475,188.87,188.79,7.77900475]
[1735278702046,7.77900475,188.83,188.78,3.04]
[1735278702247,12.13711247,188.86,188.74,12.13711247]
[1735278702447,12.13711247,188.86,188.75,6.337]
[1735278702952,2.651,188.83,188.77,2.6517]
[1735278703148,12.13711247,188.86,188.75,6.337]
[1735278703353,12.13711247,188.8,188.73,3.04]
[1735278703651,12.13711247,188.8,188.72,3.04]
[1735278703853,12.13711247,188.77,188.72,3.04]
[1735278704049,2.6523,188.73,188.72,3.04]
[1735278704250,12.13711247,188.77,188.72,3.04]
[1735278704645,2.6519,188.77,188.72,3.04]
[1735278704851,12.13711247,188.8,188.72,3.04]
[1735278705850,2.652,188.75,188.72,3.04]
[1735278706250,12.13711247,188.8,188.72,3.04]
[1735278707049,2.6517,188.77,188.72,3.04]
[1735278707354,12.13711247,188.8,188.72,3.04]
[1735278707752,2.6516,188.79,188.74,2.6521]
[1735278708651,2.6516,188.79,188.72,3.04]
[1735278708851,2.6516,188.79,188.75,2.652]
[1735278709650,12.13711247,188.8,188.75,2.652]
[1735278710453,2.6513,188.8,188.75,2.652]
[1735278710642,12.13711247,188.83,188.72,3.04]
[1735278711251,14.78811247,188.83,188.78,2.6515]
[1735278711554,14.78811247,188.83,188.78,5.6915]
[1735278711852,2.651,188.83,188.78,5.6915]
[1735278712651,2.6507,188.85,188.78,3.04]
[1735278713659,2.6505,188.87,188.78,3.04]
[1735278714152,2.6505,188.87,188.82,2.651]
[1735278714352,2.6505,188.87,188.83,3.04]
[1735278715152,14.78731247,188.89,188.83,5.6908]
[1735278716454,14.78731247,188.89,188.84,2.6507]
[1735278716654,12.13711247,188.89,188.83,3.04]
[1735278716851,2.6502,188.88,188.83,3.04]
[1735278717052,12.13711247,188.89,188.77,12.13711247]
[1735278717251,12.13711247,188.86,188.78,3.04]
[1735278717447,12.13711247,188.89,188.78,3.04]
[1735278717659,12.13711247,188.89,188.79,2.6514]
[1735278717858,12.13711247,188.89,188.78,3.04]
[1735278719059,2.6502,188.88,188.83,2.6508]
[1735278719259,2.6502,188.88,188.84,3.04]
[1735278719858,2.6506,188.85,188.84,3.04]
[1735278720749,2.6506,188.85,188.8,3.04]
[1735278720953,12.13711247,188.89,188.79,3.04]
[1735278721352,2.6505,188.86,188.82,2.651]
[1735278721553,12.13711247,188.89,188.79,3.04]
[1735278722156,2.6502,188.88,188.84,2.6507]
[1735278722357,12.13711247,188.89,188.84,5.6907]
[1735278722557,12.13711247,188.89,188.84,3.04]
[1735278723256,14.78721247,188.89,188.84,5.6907]
[1735278725357,12.13711247,188.92,188.84,3.04]
[1735278726055,2.6499,188.91,188.86,2.6504]
[1735278726259,10.41125756,188.91,188.86,2.6504]
[1735278727057,2.6499,188.91,188.86,2.6504]
[1735278727257,10.41125756,188.91,188.86,2.6504]
[1735278728259,2.6499,188.91,188.86,2.6504]
[1735278729262,2.65,188.9,188.86,2.6504]
[1735278730760,54.61679537,188.97,188.84,3.04]
[1735278730958,12.12758879,188.95,188.84,15.16758879]
[1735278731362,2.6495,188.93,188.84,15.16758879]
[1735278731963,2.6494,188.94,188.84,15.16758879]
[1735278732965,2.6494,188.94,188.9,2.6499]
[1735278733164,2.6494,188.94,188.9,5.6899]
[1735278734164,54.61679537,188.97,188.9,3.04]
[1735278734371,2.6492,188.95,188.91,2.6497]
[1735278735466,12.12758879,189.01,188.9,15.16758879]
[1735278735966,2.6486,188.99,188.95,2.6492]
[1735278736171,12.12758879,189.04,188.95,5.6892]
[1735278738864,2.6484,189.01,188.97,2.6489]
[1735278739261,12.54738879,189.07,188.95,3.04]
[1735278740169,2.6479,189.05,188.99,2.6486]
[1735278740471,12.12758879,189.07,189.0,3.04]
[1735278740971,2.6478,189.05,189.0,3.04]
[1735278741568,2.6478,189.05,189.0,5.6885]
[1735278742667,12.12758879,189.07,189.0,5.6885]
[1735278742668,12.12758879,189.07,189.0,3.04]
[1735278742872,12.12758879,189.04,188.97,3.04]
[1735278744173,12.12758879,189.07,188.97,3.04]
[1735278745571,2.6479,189.05,189.0,2.6485]
[1735278746569,2.648,189.04,188.99,2.6486]
[1735278747467,12.12758879,189.07,188.99,2.6486]
[1735278747670,12.12758879,189.07,188.98,3.04]
[1735278749680,2.6482,189.03,188.98,5.6888]
[1735278749875,12.12758879,189.07,188.93,12.12758879]
[1735278750177,12.12758879,189.04,188.94,3.04]
[1735278750574,2.6488,188.99,188.94,5.6893]
[1735278750774,12.12758879,189.01,188.92,3.1738]
[1735278750974,12.12758879,189.01,188.91,3.04]
[1735278751280,12.12758879,188.98,188.91,3.04]
[1735278751880,2.6493,188.95,188.91,3.04]
[1735278752081,12.12758879,188.98,188.91,3.04]
[1735278753082,12.12758879,188.98,188.88,5.6901]
[1735278754485,2.6496,188.93,188.88,5.6901]
[1735278755185,2.6496,188.92,188.88,5.6901]
[1735278758189,2.6496,188.92,188.88,3.04]
[1735278759189,12.12758879,188.95,188.82,42.59453499]
[1735278759488,12.12758879,188.92,188.83,3.04]
[1735278760486,2.6502,188.89,188.84,2.6507]
[1735278761187,2.6502,188.89,188.85,2.6506]
[1735278762790,2.6502,188.89,188.83,3.04]
[1735278762991,2.6502,188.89,188.84,2.6507]
[1735278764083,2.6505,188.86,188.83,3.04]
[1735278764292,2.6505,188.86,188.82,3.04]
[1735278765391,2.6505,188.86,188.82,5.691]
[1735278765699,12.12758879,188.92,188.82,15.16758879]
[1735278765700,2.65,188.89,188.82,15.16758879]
[1735278766195,7.76173974,188.92,188.85,2.6505]
[1735278766397,2.6499,188.9,188.85,2.6505]
[1735278767898,2.6501,188.89,188.84,10.41243974]
[1735278768199,7.76173974,188.9,188.84,10.41243974]
[1735278768695,2.6501,188.89,188.84,10.41243974]
[1735278779810,7.76173974,188.9,188.83,3.2724]
[1735278780017,7.76173974,188.88,188.82,3.04]
[1735278780211,3.4586,188.97,188.83,7.76173974]
[1735278780406,7.76173974,188.91,188.83,7.76173974]
[1735278780610,2.6502,188.88,188.84,2.6506]
[1735278780812,7.76173974,188.89,188.83,7.76173974]
[1735278782415,7.76173974,188.89,188.82,3.04]
[1735278783117,2.6506,188.86,188.82,3.04]
[1735278783709,2.6507,188.85,188.81,10.41283974]
[1735278784014,7.76173974,188.87,188.8,3.04]
[1735278786620,7.76173974,188.87,188.79,10.41313974]
[1735278787424,2.651,188.83,188.79,10.41313974]
[1735278790523,2.6507,188.85,188.81,7.76173974]
[1735278791317,2.6507,188.85,188.81,10.41283974]
[1735278791923,2.6508,188.84,188.81,7.76173974]
[1735278792226,7.76173974,188.87,188.79,7.76173974]
[1735278792520,7.76173974,188.85,188.79,7.76173974]
[1735278793223,2.651,188.83,188.79,7.76173974]
[1735278793924,2.6511,188.82,188.79,7.76173974]
[1735278794425,2.6513,188.8,188.78,3.211]
[1735278794624,7.76173974,188.82,188.78,3.211]
[1735278795423,2.6512,188.81,188.78,3.211]
[1735278795625,7.76173974,188.82,188.78,3.211]
[1735278796517,2.6514,188.8,188.76,5.6918]
[1735278796724,2.6514,188.8,188.76,2.6518]
[1735278796926,2.6514,188.8,188.76,5.6918]
[1735278798323,7.76173974,188.82,188.77,2.6517]
[1735278798523,2.6512,188.81,188.77,10.41343974]
[1735278799620,2.6513,188.8,188.77,10.41343974]
[1735278799819,3.04,188.88,188.76,6.3484]
[1735278799820,7.76173974,188.82,188.76,6.3484]
[1735278803222,7.76173974,188.82,188.76,3.3084]
[1735278803528,7.76173974,188.78,188.71,3.04]
[1735278803924,3.04,188.86,188.72,7.76173974]
[1735278804118,7.76173974,188.8,188.72,7.76173974]
[1735278804429,7.76173974,188.8,188.73,1.6227]
[1735278804928,2.6515,188.79,188.75,2.6519]
[1735278805623,7.76173974,188.8,188.73,4.2749]
[1735278805829,7.76173974,188.8,188.73,4.6627]
[1735278806029,2.6515,188.79,188.74,10.41373974]
[1735278806329,7.76173974,188.84,188.76,7.76173974]
[1735278806726,2.6513,188.81,188.77,2.6517]
[1735278807032,7.76173974,188.84,188.76,7.76173974]
[1735278807229,2.6514,188.8,188.76,10.41353974]
[1735278807430,7.76173974,188.82,188.76,7.76173974]
[1735278807631,7.76173974,188.82,188.74,7.76173974]
[1735278808034,2.6516,188.78,188.74,7.76173974]
[1735278808225,7.76173974,188.8,188.75,3.04]
[1735278808533,7.76173974,188.78,188.75,3.04]
[1735278808732,2.6519,188.76,188.75,3.04]
[1735278814635,3.04,188.85,188.75,3.04]
[1735278814832,7.76173974,188.81,188.75,3.04]
[1735278816636,2.6516,188.78,188.75,3.04]
[1735278817933,2.6516,188.78,188.75,7.3761]
[1735278818631,2.6516,188.78,188.75,4.7241]
[1735278821226,2.6515,188.79,188.75,7.3761]
[1735278823933,2.6515,188.79,188.75,4.3361]
[1735278828340,7.19877109,188.87,188.76,7.76173974]
[1735278828540,7.76173974,188.85,188.78,7.76173974]
[1735278828745,14.96051083,188.87,188.79,3.04]
[1735278828936,14.96051083,188.87,188.79,4.7241]
[1735278829137,2.6507,188.84,188.8,10.41303974]
[1735278829437,2.6507,188.84,188.8,11.96113974]
[1735278830139,14.96051083,188.87,188.8,1.5481]
[1735278830140,2.6509,188.83,188.8,1.5481]
[1735278830440,2.6509,188.83,188.8,4.5881]
[1735278832041,2.6508,188.84,188.8,4.5881]
[1735278832541,7.76173974,188.85,188.8,4.5881]
[1735278832842,7.76173974,188.83,188.8,3.04]
[1735278833541,2.6512,188.81,188.8,3.04]
[1735278836143,2.6513,188.8,188.79,1.6841]
[1735278836443,2.6513,188.8,188.78,3.04]
[1735278837944,2.6514,188.79,188.78,3.04]
[1735278840354,2.6513,188.8,188.78,3.04]
[1735278840553,7.76173974,188.83,188.78,3.04]
[1735278841153,2.6512,188.81,188.78,3.04]
[1735278841350,7.76173974,188.83,188.76,7.76173974]
[1735278841550,7.76173974,188.83,188.78,3.04]
[1735278842147,7.76173974,188.81,188.78,3.04]
[1735278842343,7.76173974,188.79,188.75,1.6841]
[1735278842554,7.76173974,188.79,188.74,3.04]
[1735278842950,2.6519,188.76,188.74,3.04]
[1735278843848,7.76173974,188.79,188.74,3.04]
[1735278844051,2.6518,188.77,188.74,3.04]
[1735278846957,2.6516,188.78,188.74,5.6921]
[1735278848056,2.6516,188.78,188.74,2.6521]
[1735278848257,2.6516,188.78,188.74,5.6921]
[1735278852858,2.6514,188.8,188.75,2.6519]
[1735278853068,7.76173974,188.83,188.74,10.80173974]
[1735278853455,2.6513,188.8,188.76,2.6519]
[1735278858161,2.6513,188.8,188.76,5.6919]
[1735278861067,2.6513,188.8,188.77,2.6517]
[1735278862070,2.6512,188.81,188.77,2.6517]
[1735278862467,2.6512,188.81,188.78,2.6516]
[1735278862864,2.6511,188.82,188.78,2.6516]
[1735278866869,2.6511,188.82,188.79,2.6514]
[1735278869768,7.76173974,188.85,188.79,2.6514]
[1735278869974,54.62755089,188.89,188.81,7.76173974]
[1735278870269,7.76173974,188.88,188.82,3.04]
[1735278870874,7.76173974,188.88,188.82,4.6079]
[1735278871470,10.41193974,188.88,188.84,2.6507]
[1735278871670,10.41193974,188.88,188.82,4.6079]
[1735278872473,10.41193974,188.88,188.83,2.6508]
[1735278872873,2.6502,188.88,188.83,10.41253974]
[1735278876069,2.6502,188.88,188.84,2.6507]
[1735278881677,2.6505,188.86,188.82,1.5679]
[1735278881974,7.76173974,188.86,188.8,3.04]
[1735278882377,7.76173974,188.84,188.78,2.6516]
[1735278882569,7.76173974,188.84,188.77,9.42233974]
[1735278882770,7.76173974,188.82,188.77,1.6606]
[1735278882973,7.76173974,188.82,188.76,4.6277]
[1735278884070,7.76173974,188.8,188.76,3.04]
[1735278884676,2.6516,188.79,188.76,3.04]
[1735278884874,7.76173974,188.8,188.76,3.04]
[1735278885579,2.6515,188.79,188.76,3.04]
[1735278889071,10.41293974,188.82,188.76,5.6918]
[1735278890881,2.6512,188.81,188.76,5.6918]
[1735278901590,2.6512,188.81,188.77,2.6517]
[1735278902697,7.76173974,188.82,188.76,3.04]
[1735278903000,54.62755089,188.89,188.81,7.76173974]
[1735278903197,62.38929063,188.89,188.82,3.04]
[1735278903490,28.79508437,188.91,188.83,7.76173974]